[Event "Titled Tuesday Blitz July 4 Early 2023"]
[White "Saito, Vinicius"]
[Black "Winkels, Marcel"]
[WhiteFideId "2113384"]
[BlackFideId "1003887"]
[WhiteElo "2373"]
[BlackElo "2071"]
[Result "1-0"]
[Round "10"]
[TimeControl "180+2"]
[Date "2023.07.04"]
[WhiteClock "0:01:16"]
[BlackClock "0:00:05"]
[Board "147"]

1. e4 {[%clk 0:03:00]}  c5 {[%clk 0:02:58]} 2. Nf3 {[%clk 0:03:01]}  d6 {[%clk 0:02:59]} 3. c3 {[%clk 0:03:00]}  Bg4 {[%clk 0:02:56]} 4. h3 {[%clk 0:02:59]}  Bxf3 {[%clk 0:02:55]} 5. Qxf3 {[%clk 0:02:59]}  Nc6 {[%clk 0:02:55]} 6. Bb5 {[%clk 0:02:55]}  Rc8 {[%clk 0:02:52]} 7. O-O {[%clk 0:02:54]}  Nf6 {[%clk 0:02:49]} 8. d3 {[%clk 0:02:54]}  e5 {[%clk 0:02:46]} 9. Nd2 {[%clk 0:02:52]}  Be7 {[%clk 0:02:47]} 10. Qe2 {[%clk 0:02:52]}  O-O {[%clk 0:02:47]} 11. Nf3 {[%clk 0:02:51]}  a6 {[%clk 0:02:42]} 12. Ba4 {[%clk 0:02:51]}  b5 {[%clk 0:02:41]} 13. Bb3 {[%clk 0:02:52]}  h6 {[%clk 0:02:38]} 14. Rd1 {[%clk 0:02:47]}  a5 {[%clk 0:02:34]} 15. Bc2 {[%clk 0:02:46]}  a4 {[%clk 0:02:34]} 16. g3 {[%clk 0:02:40]}  Qd7 {[%clk 0:02:30]} 17. Kg2 {[%clk 0:02:39]}  Rfe8 {[%clk 0:02:29]} 18. Nh4 {[%clk 0:02:39]}  Bf8 {[%clk 0:02:26]} 19. Nf5 {[%clk 0:02:39]}  Ne7 {[%clk 0:02:24]} 20. Ne3 {[%clk 0:02:37]}  Ng6 {[%clk 0:02:21]} 21. Qf3 {[%clk 0:02:32]}  Rcd8 {[%clk 0:02:17]} 22. b3 {[%clk 0:02:30]}  axb3 {[%clk 0:02:14]} 23. axb3 {[%clk 0:02:30]}  Ra8 {[%clk 0:01:54]} 24. Bb2 {[%clk 0:02:30]}  Ne7 {[%clk 0:01:43]} 25. d4 {[%clk 0:02:29]}  Nc6 {[%clk 0:01:38]} 26. dxc5 {[%clk 0:02:27]}  Rxa1 {[%clk 0:01:29]} 27. Bxa1 {[%clk 0:02:27]}  Qc7 {[%clk 0:01:22]} 28. cxd6 {[%clk 0:02:26]}  Bxd6 {[%clk 0:01:21]} 29. Nf5 {[%clk 0:02:26]}  Bf8 {[%clk 0:01:17]} 30. Bd3 {[%clk 0:02:24]}  b4 {[%clk 0:01:02]} 31. Bc4 {[%clk 0:02:24]}  bxc3 {[%clk 0:00:54]} 32. Bxc3 {[%clk 0:02:23]}  Nd4 {[%clk 0:00:51]} 33. Nxd4 {[%clk 0:02:20]}  exd4 {[%clk 0:00:50]} 34. Bxd4 {[%clk 0:02:20]}  Nxe4 {[%clk 0:00:47]} 35. Be3 {[%clk 0:01:39]}  Nd6 {[%clk 0:00:38]} 36. Bd5 {[%clk 0:01:38]}  Nb5 {[%clk 0:00:36]} 37. Rc1 {[%clk 0:01:35]}  Qb8 {[%clk 0:00:32]} 38. Rc6 {[%clk 0:01:31]}  Nd6 {[%clk 0:00:29]} 39. Bf4 {[%clk 0:01:28]}  Qd8 {[%clk 0:00:27]} 40. Bxd6 {[%clk 0:01:26]}  Bxd6 {[%clk 0:00:26]} 41. Bxf7+ {[%clk 0:01:26]}  Kf8 {[%clk 0:00:26]} 42. Bxe8+ {[%clk 0:01:26]}  Kxe8 {[%clk 0:00:26]} 43. Qe4+ {[%clk 0:01:23]}  Kf8 {[%clk 0:00:21]} 44. Qd5 {[%clk 0:01:22]}  Ke7 {[%clk 0:00:21]} 45. b4 {[%clk 0:01:21]}  Qd7 {[%clk 0:00:19]} 46. b5 {[%clk 0:01:20]}  h5 {[%clk 0:00:15]} 47. b6 {[%clk 0:01:20]}  h4 {[%clk 0:00:14]} 48. b7 {[%clk 0:01:18]}  Qd8 {[%clk 0:00:11]} 49. Qxd6+ {[%clk 0:01:16]}  Qxd6 {[%clk 0:00:11]} 50. Rxd6 {[%clk 0:01:16]}  Kxd6 {[%clk 0:00:05]} 51. b8=Q+ {[%clk 0:01:16]} 1-0


[Site "https://www.chess.com"]

[Event "Titled Tuesday Blitz July 4 Early 2023"]
[White "Warchol, Kamil"]
[Black "Adireddy Arjun"]
[WhiteFideId "21858241"]
[BlackFideId "25647709"]
[WhiteElo "2235"]
[BlackElo "2350"]
[Result "0-1"]
[Round "10"]
[TimeControl "180+2"]
[Date "2023.07.04"]
[WhiteClock "0:00:01"]
[BlackClock "0:00:29"]
[Board "148"]

1. e4 {[%clk 0:03:00]}  c6 {[%clk 0:02:57]} 2. c4 {[%clk 0:02:56]}  d5 {[%clk 0:02:55]} 3. cxd5 {[%clk 0:02:56]}  cxd5 {[%clk 0:02:56]} 4. exd5 {[%clk 0:02:57]}  Qxd5 {[%clk 0:02:56]} 5. Nc3 {[%clk 0:02:58]}  Qd8 {[%clk 0:02:55]} 6. Nf3 {[%clk 0:02:58]}  Nf6 {[%clk 0:02:54]} 7. d4 {[%clk 0:02:57]}  g6 {[%clk 0:02:52]} 8. Qb3 {[%clk 0:02:35]}  Bg7 {[%clk 0:02:49]} 9. Bc4 {[%clk 0:02:29]}  O-O {[%clk 0:02:46]} 10. d5 {[%clk 0:01:55]}  Nbd7 {[%clk 0:02:35]} 11. Be3 {[%clk 0:01:54]}  a6 {[%clk 0:02:30]} 12. a4 {[%clk 0:01:53]}  b6 {[%clk 0:02:21]} 13. O-O {[%clk 0:01:50]}  Bb7 {[%clk 0:02:21]} 14. Rfd1 {[%clk 0:01:49]}  Rc8 {[%clk 0:02:07]} 15. Rac1 {[%clk 0:01:39]}  Nc5 {[%clk 0:01:57]} 16. Qa3 {[%clk 0:01:36]}  Qd6 {[%clk 0:01:51]} 17. a5 {[%clk 0:01:04]}  Ncd7 {[%clk 0:01:25]} 18. Qxd6 {[%clk 0:00:52]}  exd6 {[%clk 0:01:26]} 19. Ba2 {[%clk 0:00:52]}  b5 {[%clk 0:01:09]} 20. Bf4 {[%clk 0:00:52]}  b4 {[%clk 0:01:06]} 21. Bxd6 {[%clk 0:00:41]}  bxc3 {[%clk 0:01:01]} 22. Bxf8 {[%clk 0:00:41]}  Kxf8 {[%clk 0:00:56]} 23. bxc3 {[%clk 0:00:26]}  Ne4 {[%clk 0:00:51]} 24. c4 {[%clk 0:00:14]}  Nc3 {[%clk 0:00:50]} 25. Rd2 {[%clk 0:00:14]}  Nxa2 {[%clk 0:00:48]} 26. Rxa2 {[%clk 0:00:14]}  Bxd5 {[%clk 0:00:48]} 27. Rac2 {[%clk 0:00:13]}  Be4 {[%clk 0:00:43]} 28. Rd2 {[%clk 0:00:12]}  Bxf3 {[%clk 0:00:38]} 29. gxf3 {[%clk 0:00:09]}  Bh6 {[%clk 0:00:32]} 30. Rxd7 {[%clk 0:00:03]}  Bxc1 {[%clk 0:00:32]} 31. Ra7 {[%clk 0:00:01]}  Rc6 {[%clk 0:00:29]} 0-1


[Site "https://www.chess.com"]

[Event "Titled Tuesday Blitz July 4 Early 2023"]
[White "Ho, In Hei Henry"]
[Black "Martin, Lewis"]
[WhiteFideId "6002552"]
[BlackFideId "410551"]
[WhiteElo "2074"]
[BlackElo "2262"]
[Result "0-1"]
[Round "10"]
[TimeControl "180+2"]
[Date "2023.07.04"]
[WhiteClock "0:00:06"]
[BlackClock "0:00:26"]
[Board "151"]

1. e4 {[%clk 0:03:00]}  c5 {[%clk 0:02:59]} 2. Nc3 {[%clk 0:03:00]}  Nc6 {[%clk 0:02:59]} 3. f4 {[%clk 0:03:00]}  e6 {[%clk 0:02:58]} 4. Nf3 {[%clk 0:03:01]}  a6 {[%clk 0:02:57]} 5. d3 {[%clk 0:02:58]}  b5 {[%clk 0:02:57]} 6. Be3 {[%clk 0:02:56]}  d5 {[%clk 0:02:54]} 7. Bf2 {[%clk 0:02:50]}  d4 {[%clk 0:02:53]} 8. Ne2 {[%clk 0:02:50]}  e5 {[%clk 0:02:50]} 9. fxe5 {[%clk 0:02:45]}  Bg4 {[%clk 0:02:47]} 10. Bg3 {[%clk 0:02:41]}  h5 {[%clk 0:02:45]} 11. h3 {[%clk 0:02:40]}  Bxf3 {[%clk 0:02:40]} 12. gxf3 {[%clk 0:02:40]}  Be7 {[%clk 0:02:36]} 13. f4 {[%clk 0:02:37]}  Bh4 {[%clk 0:02:35]} 14. Rg1 {[%clk 0:02:27]}  Nh6 {[%clk 0:02:22]} 15. Qd2 {[%clk 0:02:24]}  Qe7 {[%clk 0:02:04]} 16. a3 {[%clk 0:02:18]}  O-O-O {[%clk 0:02:03]} 17. Kd1 {[%clk 0:02:12]}  Bxg3 {[%clk 0:01:55]} 18. Nxg3 {[%clk 0:02:03]}  f6 {[%clk 0:01:56]} 19. exf6 {[%clk 0:01:55]}  gxf6 {[%clk 0:01:54]} 20. Nxh5 {[%clk 0:01:51]}  Rhg8 {[%clk 0:01:53]} 21. Ng3 {[%clk 0:01:04]}  Rg7 {[%clk 0:01:34]} 22. Qf2 {[%clk 0:01:01]}  Rdg8 {[%clk 0:01:33]} 23. Be2 {[%clk 0:01:00]}  Nf7 {[%clk 0:01:23]} 24. Bg4+ {[%clk 0:00:57]}  Kb7 {[%clk 0:01:22]} 25. Kd2 {[%clk 0:00:56]}  Nd6 {[%clk 0:01:19]} 26. Nf5 {[%clk 0:00:51]}  Nxf5 {[%clk 0:01:09]} 27. Bxf5 {[%clk 0:00:51]}  Qc7 {[%clk 0:00:58]} 28. Rxg7 {[%clk 0:00:40]}  Rxg7 {[%clk 0:00:58]} 29. Rg1 {[%clk 0:00:39]}  Rxg1 {[%clk 0:00:58]} 30. Qxg1 {[%clk 0:00:40]}  Qxf4+ {[%clk 0:00:58]} 31. Kd1 {[%clk 0:00:39]}  Ne5 {[%clk 0:00:57]} 32. Qg7+ {[%clk 0:00:35]}  Kb6 {[%clk 0:00:57]} 33. Qxf6+ {[%clk 0:00:35]}  Ka5 {[%clk 0:00:57]} 34. b4+ {[%clk 0:00:32]}  cxb4 {[%clk 0:00:57]} 35. axb4+ {[%clk 0:00:33]}  Kxb4 {[%clk 0:00:57]} 36. Qd6+ {[%clk 0:00:31]}  Kc3 {[%clk 0:00:54]} 37. Qc5+ {[%clk 0:00:28]}  Nc4 {[%clk 0:00:54]} 38. Ke2 {[%clk 0:00:11]}  Kxc2 {[%clk 0:00:28]} 39. dxc4 {[%clk 0:00:10]}  d3+ {[%clk 0:00:26]} 40. Ke1 {[%clk 0:00:08]}  d2+ {[%clk 0:00:27]} 41. Ke2 {[%clk 0:00:06]}  d1=Q# {[%clk 0:00:26]} 0-1


[Site "https://www.chess.com"]

[Event "Titled Tuesday Blitz July 4 Early 2023"]
[White "Skiadopoulos, Nikolaos"]
[Black "Tuleyeva-Aketayeva, Dana"]
[WhiteFideId "4200772"]
[BlackFideId "13701932"]
[WhiteElo "1902"]
[BlackElo "2242"]
[Result "0-1"]
[Round "10"]
[TimeControl "180+2"]
[Date "2023.07.04"]
[WhiteClock "0:00:00"]
[BlackClock "0:01:03"]
[Board "152"]

1. e4 {[%clk 0:03:00]}  c5 {[%clk 0:02:59]} 2. b4 {[%clk 0:02:59]}  d6 {[%clk 0:02:57]} 3. bxc5 {[%clk 0:02:57]}  dxc5 {[%clk 0:02:58]} 4. Nf3 {[%clk 0:02:56]}  Nc6 {[%clk 0:02:58]} 5. Bb5 {[%clk 0:02:55]}  Bd7 {[%clk 0:02:58]} 6. O-O {[%clk 0:02:55]}  Nf6 {[%clk 0:02:57]} 7. e5 {[%clk 0:02:53]}  Nd5 {[%clk 0:02:58]} 8. e6 {[%clk 0:02:44]}  Bxe6 {[%clk 0:02:54]} 9. Ne5 {[%clk 0:02:32]}  Bd7 {[%clk 0:02:54]} 10. Nxd7 {[%clk 0:02:31]}  Qxd7 {[%clk 0:02:55]} 11. Na3 {[%clk 0:02:23]}  e6 {[%clk 0:02:51]} 12. Nc4 {[%clk 0:02:22]}  Bd6 {[%clk 0:02:45]} 13. Nxd6+ {[%clk 0:02:15]}  Qxd6 {[%clk 0:02:45]} 14. Ba3 {[%clk 0:02:14]}  O-O {[%clk 0:02:41]} 15. d4 {[%clk 0:02:12]}  Nc3 {[%clk 0:02:29]} 16. Qd3 {[%clk 0:01:57]}  Nxb5 {[%clk 0:02:24]} 17. Qxb5 {[%clk 0:01:56]}  Nxd4 {[%clk 0:02:24]} 18. Qxc5 {[%clk 0:01:52]}  Qf4 {[%clk 0:02:08]} 19. Qa5 {[%clk 0:01:23]}  Rfd8 {[%clk 0:01:55]} 20. Be7 {[%clk 0:01:08]}  Rd5 {[%clk 0:01:45]} 21. Qe1 {[%clk 0:00:46]}  Nxc2 {[%clk 0:01:41]} 22. Qc1 {[%clk 0:00:45]}  Qf5 {[%clk 0:01:31]} 23. Rb1 {[%clk 0:00:44]}  b6 {[%clk 0:01:29]} 24. Rb3 {[%clk 0:00:41]}  Nd4 {[%clk 0:01:24]} 25. Re3 {[%clk 0:00:38]}  h6 {[%clk 0:01:18]} 26. Bh4 {[%clk 0:00:27]}  Re5 {[%clk 0:01:15]} 27. Bg3 {[%clk 0:00:20]}  Ne2+ {[%clk 0:01:11]} 28. Rxe2 {[%clk 0:00:13]}  Rxe2 {[%clk 0:01:11]} 29. Qc6 {[%clk 0:00:10]}  Qd5 {[%clk 0:01:10]} 30. Qa4 {[%clk 0:00:05]}  Rxa2 {[%clk 0:01:08]} 31. Qg4 {[%clk 0:00:05]}  a5 {[%clk 0:01:04]} 32. h4 {[%clk 0:00:06]}  a4 {[%clk 0:01:04]} 33. Rd1 {[%clk 0:00:04]}  Rd2 {[%clk 0:01:04]} 34. Rb1 {[%clk 0:00:00]}  a3 {[%clk 0:01:03]} 0-1


[Site "https://www.chess.com"]

[Event "Titled Tuesday Blitz July 4 Early 2023"]
[White "Vazquez Espino, Uriel"]
[Black "Peiris, T G M"]
[WhiteFideId "5119138"]
[BlackFideId "9901310"]
[WhiteElo "2345"]
[BlackElo "2213"]
[Result "1-0"]
[Round "10"]
[TimeControl "180+2"]
[Date "2023.07.04"]
[WhiteClock "0:00:25"]
[BlackClock "0:00:13"]
[Board "154"]

1. e4 {[%clk 0:03:00]}  c5 {[%clk 0:02:59]} 2. Nf3 {[%clk 0:03:00]}  Nc6 {[%clk 0:02:59]} 3. Bb5 {[%clk 0:02:59]}  d5 {[%clk 0:02:54]} 4. exd5 {[%clk 0:02:58]}  Qxd5 {[%clk 0:02:55]} 5. Nc3 {[%clk 0:02:58]}  Qe6+ {[%clk 0:02:55]} 6. Be2 {[%clk 0:02:56]}  Nf6 {[%clk 0:02:53]} 7. O-O {[%clk 0:02:56]}  Qd7 {[%clk 0:02:52]} 8. Bb5 {[%clk 0:02:55]}  Qc7 {[%clk 0:02:47]} 9. d4 {[%clk 0:02:53]}  cxd4 {[%clk 0:02:44]} 10. Nxd4 {[%clk 0:02:53]}  Bd7 {[%clk 0:02:45]} 11. Bg5 {[%clk 0:02:46]}  O-O-O {[%clk 0:02:32]} 12. Nxc6 {[%clk 0:02:24]}  Bxc6 {[%clk 0:02:32]} 13. Qe2 {[%clk 0:02:19]}  a6 {[%clk 0:02:29]} 14. Bxc6 {[%clk 0:02:10]}  Qxc6 {[%clk 0:02:29]} 15. Rad1 {[%clk 0:02:04]}  Rxd1 {[%clk 0:02:17]} 16. Rxd1 {[%clk 0:02:03]}  e6 {[%clk 0:02:17]} 17. Qe5 {[%clk 0:01:58]}  Be7 {[%clk 0:02:17]} 18. Bf4 {[%clk 0:01:56]}  Nd7 {[%clk 0:02:08]} 19. Qxg7 {[%clk 0:01:55]}  Bf6 {[%clk 0:01:50]} 20. Qxf7 {[%clk 0:01:48]}  Rf8 {[%clk 0:01:44]} 21. Qh5 {[%clk 0:00:43]}  Bxc3 {[%clk 0:01:43]} 22. Bd6 {[%clk 0:00:43]}  Rg8 {[%clk 0:01:40]} 23. f3 {[%clk 0:00:37]}  Bb4 {[%clk 0:01:03]} 24. Bxb4 {[%clk 0:00:34]}  Qb6+ {[%clk 0:01:03]} 25. Kh1 {[%clk 0:00:33]}  Qxb4 {[%clk 0:01:03]} 26. Qf7 {[%clk 0:00:32]}  Rd8 {[%clk 0:00:59]} 27. Qxe6 {[%clk 0:00:32]}  Qxb2 {[%clk 0:00:56]} 28. Qc4+ {[%clk 0:00:29]}  Kb8 {[%clk 0:00:56]} 29. Qf4+ {[%clk 0:00:28]}  Ka8 {[%clk 0:00:53]} 30. Qc7 {[%clk 0:00:28]}  Qb6 {[%clk 0:00:40]} 31. Qxb6 {[%clk 0:00:28]}  Nxb6 {[%clk 0:00:34]} 32. Rxd8+ {[%clk 0:00:28]}  Ka7 {[%clk 0:00:34]} 33. Rh8 {[%clk 0:00:29]}  Nd5 {[%clk 0:00:30]} 34. Rd8 {[%clk 0:00:27]}  Ne3 {[%clk 0:00:28]} 35. f4 {[%clk 0:00:26]}  Nxc2 {[%clk 0:00:28]} 36. f5 {[%clk 0:00:26]}  Ne3 {[%clk 0:00:28]} 37. f6 {[%clk 0:00:26]}  Nf5 {[%clk 0:00:13]} 38. f7 {[%clk 0:00:25]} 1-0


[Site "https://www.chess.com"]

[Event "Titled Tuesday Blitz July 4 Early 2023"]
[White "Kiseleva, Arina"]
[Black "Biriukov, Ilja"]
[WhiteFideId "4164989"]
[BlackFideId "4113373"]
[WhiteElo "2172"]
[BlackElo "2267"]
[Result "0-1"]
[Round "10"]
[TimeControl "180+2"]
[Date "2023.07.04"]
[WhiteClock "0:00:00"]
[BlackClock "0:00:22"]
[Board "155"]

1. d4 {[%clk 0:01:49]}  Nf6 {[%clk 0:02:59]} 2. Nf3 {[%clk 0:01:48]}  g6 {[%clk 0:02:59]} 3. Nbd2 {[%clk 0:01:47]}  Bg7 {[%clk 0:02:59]} 4. e4 {[%clk 0:01:47]}  d6 {[%clk 0:02:59]} 5. c3 {[%clk 0:01:47]}  O-O {[%clk 0:02:58]} 6. Bd3 {[%clk 0:01:46]}  Nbd7 {[%clk 0:02:56]} 7. O-O {[%clk 0:01:46]}  e5 {[%clk 0:02:56]} 8. Re1 {[%clk 0:01:45]}  c6 {[%clk 0:02:55]} 9. a4 {[%clk 0:01:45]}  Re8 {[%clk 0:02:53]} 10. Qb3 {[%clk 0:01:36]}  Nf8 {[%clk 0:02:46]} 11. a5 {[%clk 0:01:32]}  Qc7 {[%clk 0:02:41]} 12. h3 {[%clk 0:01:21]}  Be6 {[%clk 0:02:40]} 13. Bc4 {[%clk 0:01:16]}  Bxc4 {[%clk 0:02:29]} 14. Qxc4 {[%clk 0:01:15]}  exd4 {[%clk 0:02:12]} 15. cxd4 {[%clk 0:01:09]}  d5 {[%clk 0:02:04]} 16. exd5 {[%clk 0:01:02]}  Rxe1+ {[%clk 0:02:02]} 17. Nxe1 {[%clk 0:01:03]}  Nxd5 {[%clk 0:02:00]} 18. Ndf3 {[%clk 0:00:58]}  Re8 {[%clk 0:01:53]} 19. Bd2 {[%clk 0:00:55]}  Ne6 {[%clk 0:01:36]} 20. Nd3 {[%clk 0:00:52]}  h5 {[%clk 0:01:28]} 21. b4 {[%clk 0:00:48]}  a6 {[%clk 0:01:26]} 22. Rc1 {[%clk 0:00:44]}  Qd6 {[%clk 0:01:23]} 23. Nc5 {[%clk 0:00:41]}  Qe7 {[%clk 0:01:12]} 24. Re1 {[%clk 0:00:27]}  Qc7 {[%clk 0:01:07]} 25. Nxe6 {[%clk 0:00:25]}  Rxe6 {[%clk 0:01:04]} 26. Rxe6 {[%clk 0:00:24]}  fxe6 {[%clk 0:01:05]} 27. Ng5 {[%clk 0:00:23]}  Qe7 {[%clk 0:01:00]} 28. h4 {[%clk 0:00:23]}  e5 {[%clk 0:00:55]} 29. dxe5 {[%clk 0:00:08]}  Bxe5 {[%clk 0:00:53]} 30. Be3 {[%clk 0:00:06]}  Bd6 {[%clk 0:00:52]} 31. g3 {[%clk 0:00:05]}  Bxb4 {[%clk 0:00:49]} 32. Bd4 {[%clk 0:00:04]}  Bd6 {[%clk 0:00:45]} 33. Bb2 {[%clk 0:00:03]}  Be5 {[%clk 0:00:44]} 34. Bc1 {[%clk 0:00:02]}  Bf6 {[%clk 0:00:43]} 35. Kg2 {[%clk 0:00:02]}  Qd7 {[%clk 0:00:41]} 36. Bd2 {[%clk 0:00:02]}  Kg7 {[%clk 0:00:41]} 37. Be1 {[%clk 0:00:02]}  Qe7 {[%clk 0:00:40]} 38. Qc1 {[%clk 0:00:02]}  Qe5 {[%clk 0:00:35]} 39. Bd2 {[%clk 0:00:02]}  Ne7 {[%clk 0:00:32]} 40. Nf3 {[%clk 0:00:02]}  Qd5 {[%clk 0:00:31]} 41. Bg5 {[%clk 0:00:02]}  Nf5 {[%clk 0:00:31]} 42. Bxf6+ {[%clk 0:00:02]}  Kxf6 {[%clk 0:00:30]} 43. Qb2+ {[%clk 0:00:02]}  Kf7 {[%clk 0:00:29]} 44. Qxb7+ {[%clk 0:00:02]}  Kf6 {[%clk 0:00:27]} 45. Qb2+ {[%clk 0:00:02]}  Kf7 {[%clk 0:00:26]} 46. Qb7+ {[%clk 0:00:02]}  Ke6 {[%clk 0:00:27]} 47. Qb2 {[%clk 0:00:02]}  c5 {[%clk 0:00:27]} 48. Qe2+ {[%clk 0:00:02]}  Kd7 {[%clk 0:00:25]} 49. Qxa6 {[%clk 0:00:02]}  Nd4 {[%clk 0:00:25]} 50. Qa7+ {[%clk 0:00:01]}  Ke6 {[%clk 0:00:24]} 51. Qb6+ {[%clk 0:00:00]}  Kf5 {[%clk 0:00:22]} 0-1


[Site "https://www.chess.com"]

[Event "Titled Tuesday Blitz July 4 Early 2023"]
[White "laimis61"]
[Black "Goughfather"]
[WhiteElo "2233"]
[BlackElo "2041"]
[Result "1-0"]
[Round "10"]
[TimeControl "180+2"]
[Date "2023.07.04"]
[WhiteClock "0:00:59"]
[BlackClock "0:00:00"]
[Board "159"]

1. e4 {[%clk 0:03:00]}  c6 {[%clk 0:02:59]} 2. d4 {[%clk 0:03:00]}  d5 {[%clk 0:03:00]} 3. exd5 {[%clk 0:02:59]}  cxd5 {[%clk 0:03:01]} 4. Bd3 {[%clk 0:02:59]}  Nf6 {[%clk 0:02:59]} 5. h3 {[%clk 0:02:58]}  g6 {[%clk 0:02:45]} 6. Nf3 {[%clk 0:02:54]}  Bf5 {[%clk 0:02:44]} 7. Be2 {[%clk 0:02:53]}  Qc7 {[%clk 0:02:34]} 8. c3 {[%clk 0:02:52]}  Bg7 {[%clk 0:02:33]} 9. O-O {[%clk 0:02:51]}  O-O {[%clk 0:02:32]} 10. Be3 {[%clk 0:02:50]}  Nc6 {[%clk 0:02:18]} 11. Nbd2 {[%clk 0:02:49]}  Rab8 {[%clk 0:02:17]} 12. Re1 {[%clk 0:02:48]}  b5 {[%clk 0:02:17]} 13. a3 {[%clk 0:02:47]}  a5 {[%clk 0:02:16]} 14. Nb3 {[%clk 0:02:46]}  b4 {[%clk 0:02:13]} 15. cxb4 {[%clk 0:02:44]}  axb4 {[%clk 0:02:12]} 16. a4 {[%clk 0:02:43]}  Na5 {[%clk 0:01:59]} 17. Rc1 {[%clk 0:02:39]}  Qa7 {[%clk 0:01:56]} 18. Ne5 {[%clk 0:02:20]}  Rbc8 {[%clk 0:01:41]} 19. Nxa5 {[%clk 0:02:03]}  Qxa5 {[%clk 0:01:40]} 20. Nc6 {[%clk 0:02:02]}  Qc7 {[%clk 0:01:24]} 21. Nxb4 {[%clk 0:01:55]}  Qb7 {[%clk 0:01:23]} 22. Bd2 {[%clk 0:01:31]}  Ne4 {[%clk 0:00:48]} 23. Rxc8 {[%clk 0:01:26]}  Qxc8 {[%clk 0:00:46]} 24. Nxd5 {[%clk 0:01:25]}  Qd7 {[%clk 0:00:38]} 25. Bc4 {[%clk 0:01:19]}  Bxd4 {[%clk 0:00:29]} 26. Be3 {[%clk 0:01:18]}  Bxb2 {[%clk 0:00:13]} 27. Bh6 {[%clk 0:01:09]}  Re8 {[%clk 0:00:11]} 28. Rxe4 {[%clk 0:01:07]}  Qc6 {[%clk 0:00:00]} 29. Rxe7 {[%clk 0:00:59]} 1-0


[Site "https://www.chess.com"]

[Event "Titled Tuesday Blitz July 4 Early 2023"]
[White "Jaivardhan Raj"]
[Black "campochess"]
[WhiteFideId "25744437"]
[WhiteElo "2083"]
[BlackElo "2125"]
[Result "0-1"]
[Round "10"]
[TimeControl "180+2"]
[Date "2023.07.04"]
[WhiteClock "0:00:31"]
[BlackClock "0:01:32"]
[Board "161"]

1. g3 {[%clk 0:03:00]}  d5 {[%clk 0:02:42]} 2. Bg2 {[%clk 0:02:57]}  c6 {[%clk 0:02:42]} 3. b3 {[%clk 0:02:57]}  Nd7 {[%clk 0:02:42]} 4. Bb2 {[%clk 0:02:58]}  e5 {[%clk 0:02:42]} 5. d3 {[%clk 0:02:59]}  Bd6 {[%clk 0:02:41]} 6. Nd2 {[%clk 0:02:59]}  Ne7 {[%clk 0:02:41]} 7. e3 {[%clk 0:03:00]}  O-O {[%clk 0:02:40]} 8. Ne2 {[%clk 0:03:00]}  f5 {[%clk 0:02:37]} 9. O-O {[%clk 0:03:01]}  Nf6 {[%clk 0:02:36]} 10. f4 {[%clk 0:03:00]}  e4 {[%clk 0:02:34]} 11. dxe4 {[%clk 0:03:00]}  fxe4 {[%clk 0:02:34]} 12. c4 {[%clk 0:02:59]}  Ng4 {[%clk 0:02:33]} 13. Bd4 {[%clk 0:02:33]}  c5 {[%clk 0:02:31]} 14. h3 {[%clk 0:02:32]}  cxd4 {[%clk 0:02:28]} 15. hxg4 {[%clk 0:02:32]}  dxe3 {[%clk 0:02:27]} 16. Nb1 {[%clk 0:02:28]}  Bxg4 {[%clk 0:02:27]} 17. cxd5 {[%clk 0:02:27]}  Qb6 {[%clk 0:02:27]} 18. Bxe4 {[%clk 0:02:26]}  Nf5 {[%clk 0:02:12]} 19. Bxf5 {[%clk 0:02:13]}  Rxf5 {[%clk 0:02:11]} 20. Nbc3 {[%clk 0:02:11]}  Rd8 {[%clk 0:02:04]} 21. Qd3 {[%clk 0:02:05]}  Rh5 {[%clk 0:01:59]} 22. Ne4 {[%clk 0:01:50]}  Be7 {[%clk 0:01:50]} 23. N4c3 {[%clk 0:00:31]}  Qh6 {[%clk 0:01:32]} 0-1


[Site "https://www.chess.com"]

[Event "Titled Tuesday Blitz July 4 Early 2023"]
[White "Gavarrete, Nahun"]
[Black "Semenova, Alina"]
[WhiteFideId "8400709"]
[BlackFideId "24113875"]
[WhiteElo "2357"]
[BlackElo "2048"]
[Result "0-1"]
[Round "10"]
[TimeControl "180+2"]
[Date "2023.07.04"]
[WhiteClock "0:00:06"]
[BlackClock "0:00:04"]
[Board "162"]

1. d4 {[%clk 0:02:51]}  Nf6 {[%clk 0:02:55]} 2. c4 {[%clk 0:02:47]}  d6 {[%clk 0:02:56]} 3. Nc3 {[%clk 0:02:46]}  g6 {[%clk 0:02:57]} 4. e4 {[%clk 0:02:46]}  Bg7 {[%clk 0:02:55]} 5. f4 {[%clk 0:02:37]}  O-O {[%clk 0:02:54]} 6. Nf3 {[%clk 0:02:36]}  c6 {[%clk 0:02:43]} 7. Bd3 {[%clk 0:02:18]}  a6 {[%clk 0:02:39]} 8. a4 {[%clk 0:02:14]}  Nbd7 {[%clk 0:02:34]} 9. e5 {[%clk 0:02:10]}  dxe5 {[%clk 0:02:23]} 10. fxe5 {[%clk 0:02:08]}  Ne8 {[%clk 0:02:23]} 11. Ng5 {[%clk 0:01:22]}  Qb6 {[%clk 0:02:00]} 12. c5 {[%clk 0:01:13]}  Qb4 {[%clk 0:01:47]} 13. Be3 {[%clk 0:00:49]}  Qxb2 {[%clk 0:01:34]} 14. Rc1 {[%clk 0:00:35]}  Qxg2 {[%clk 0:01:16]} 15. Be4 {[%clk 0:00:29]}  Qb2 {[%clk 0:01:03]} 16. O-O {[%clk 0:00:28]}  h6 {[%clk 0:00:56]} 17. Nxf7 {[%clk 0:00:19]}  Rxf7 {[%clk 0:00:20]} 18. Rc2 {[%clk 0:00:19]}  Rxf1+ {[%clk 0:00:20]} 19. Qxf1 {[%clk 0:00:18]}  Qb4 {[%clk 0:00:14]} 20. Bxg6 {[%clk 0:00:18]}  Nef6 {[%clk 0:00:11]} 21. exf6 {[%clk 0:00:15]}  Nxf6 {[%clk 0:00:12]} 22. Rg2 {[%clk 0:00:13]}  Kh8 {[%clk 0:00:10]} 23. Bxh6 {[%clk 0:00:13]}  Bxh6 {[%clk 0:00:09]} 24. Ne4 {[%clk 0:00:14]}  Qxd4+ {[%clk 0:00:07]} 25. Kh1 {[%clk 0:00:13]}  Be6 {[%clk 0:00:06]} 26. Qf3 {[%clk 0:00:12]}  Qa1+ {[%clk 0:00:05]} 27. Rg1 {[%clk 0:00:12]}  Qe5 {[%clk 0:00:05]} 28. Qh3 {[%clk 0:00:06]}  Bxh3 {[%clk 0:00:04]} 0-1


[Site "https://www.chess.com"]

[Event "Titled Tuesday Blitz July 4 Early 2023"]
[White "Lohani, Sujana"]
[Black "Phillips, Rene"]
[WhiteFideId "12311987"]
[BlackFideId "2056275"]
[WhiteElo "1917"]
[BlackElo "2029"]
[Result "1-0"]
[Round "10"]
[TimeControl "180+2"]
[Date "2023.07.04"]
[WhiteClock "0:01:07"]
[BlackClock "0:01:39"]
[Board "166"]

1. d4 {[%clk 0:03:00]}  Nc6 {[%clk 0:02:56]} 2. Nf3 {[%clk 0:03:01]}  Nf6 {[%clk 0:02:55]} 3. d5 {[%clk 0:03:00]}  Nb4 {[%clk 0:02:55]} 4. c4 {[%clk 0:02:54]}  c5 {[%clk 0:02:54]} 5. a3 {[%clk 0:02:52]}  Na6 {[%clk 0:02:54]} 6. Nc3 {[%clk 0:02:52]}  d6 {[%clk 0:02:53]} 7. e4 {[%clk 0:02:52]}  g6 {[%clk 0:02:53]} 8. h3 {[%clk 0:02:51]}  Bg7 {[%clk 0:02:54]} 9. Be2 {[%clk 0:02:50]}  O-O {[%clk 0:02:54]} 10. O-O {[%clk 0:02:50]}  Bd7 {[%clk 0:02:53]} 11. e5 {[%clk 0:02:23]}  Ne8 {[%clk 0:02:49]} 12. Bf4 {[%clk 0:02:20]}  dxe5 {[%clk 0:02:35]} 13. Nxe5 {[%clk 0:02:18]}  Bf5 {[%clk 0:02:32]} 14. Bg4 {[%clk 0:01:59]}  Nd6 {[%clk 0:02:22]} 15. Re1 {[%clk 0:01:45]}  h5 {[%clk 0:02:21]} 16. Bxf5 {[%clk 0:01:35]}  Nxf5 {[%clk 0:02:22]} 17. Qd2 {[%clk 0:01:32]}  Nd4 {[%clk 0:02:19]} 18. Rad1 {[%clk 0:01:29]}  Nc7 {[%clk 0:02:16]} 19. Bh6 {[%clk 0:01:27]}  a6 {[%clk 0:02:06]} 20. Qg5 {[%clk 0:01:20]}  Kh7 {[%clk 0:01:59]} 21. Bxg7 {[%clk 0:01:18]}  Kxg7 {[%clk 0:02:00]} 22. Nd3 {[%clk 0:01:12]}  Qd6 {[%clk 0:01:52]} 23. Qxe7 {[%clk 0:01:09]}  Rae8 {[%clk 0:01:39]} 24. Qxd6 {[%clk 0:01:07]} 1-0


[Site "https://www.chess.com"]